[Event "Titled Tuesday Blitz November 29 Late 2022"]
[White "Abdyzhapar, Asylbek"]
[Black "Adla, Diego"]
[WhiteFideId "13800337"]
[BlackFideId "100072"]
[WhiteElo "2323"]
[BlackElo "2377"]
[Result "1/2-1/2"]
[Round "05"]
[TimeControl "180+1"]
[Date "2022.11.30"]
[WhiteClock "0:01:19"]
[BlackClock "0:00:41"]

1. d4 {[%clk 0:02:59]}  Nf6 {[%clk 0:02:56]} 2. Bf4 {[%clk 0:02:59]}  d5 {[%clk 0:02:56]} 3. e3 {[%clk 0:02:59]}  c5 {[%clk 0:02:56]} 4. c3 {[%clk 0:02:59]}  Nc6 {[%clk 0:02:56]} 5. Nd2 {[%clk 0:02:59]}  Qb6 {[%clk 0:02:34]} 6. Qb3 {[%clk 0:02:57]}  c4 {[%clk 0:02:26]} 7. Qxb6 {[%clk 0:02:57]}  axb6 {[%clk 0:02:25]} 8. a3 {[%clk 0:02:55]}  Bf5 {[%clk 0:02:22]} 9. Ngf3 {[%clk 0:02:53]}  b5 {[%clk 0:02:18]} 10. Rc1 {[%clk 0:02:51]}  h6 {[%clk 0:02:12]} 11. h3 {[%clk 0:02:51]}  e6 {[%clk 0:02:11]} 12. Be2 {[%clk 0:02:50]}  g5 {[%clk 0:01:59]} 13. Bh2 {[%clk 0:02:49]}  Be7 {[%clk 0:01:59]} 14. Ne5 {[%clk 0:02:45]}  h5 {[%clk 0:01:51]} 15. f3 {[%clk 0:02:43]}  Nxe5 {[%clk 0:01:44]} 16. Bxe5 {[%clk 0:02:42]}  Bg6 {[%clk 0:01:45]} 17. Kf2 {[%clk 0:02:41]}  h4 {[%clk 0:01:32]} 18. Rhe1 {[%clk 0:02:37]}  Rg8 {[%clk 0:01:31]} 19. Bd1 {[%clk 0:02:36]}  Nh5 {[%clk 0:01:31]} 20. e4 {[%clk 0:02:35]}  Kd7 {[%clk 0:01:28]} 21. Bc2 {[%clk 0:02:32]}  f6 {[%clk 0:01:25]} 22. Bh2 {[%clk 0:02:29]}  Bd6 {[%clk 0:01:25]} 23. Bxd6 {[%clk 0:02:21]}  Kxd6 {[%clk 0:01:25]} 24. Re3 {[%clk 0:02:12]}  Nf4 {[%clk 0:01:16]} 25. Rce1 {[%clk 0:02:10]}  Rge8 {[%clk 0:01:10]} 26. Rd1 {[%clk 0:02:09]}  Kc6 {[%clk 0:01:06]} 27. exd5+ {[%clk 0:02:04]}  exd5 {[%clk 0:01:05]} 28. Bxg6 {[%clk 0:02:03]}  Nxg6 {[%clk 0:01:05]} 29. Rde1 {[%clk 0:01:49]}  Rxe3 {[%clk 0:01:02]} 30. Rxe3 {[%clk 0:01:49]}  Kd7 {[%clk 0:01:01]} 31. Nf1 {[%clk 0:01:39]}  Nf4 {[%clk 0:01:00]} 32. Kg1 {[%clk 0:01:35]}  Nd3 {[%clk 0:00:53]} 33. Re2 {[%clk 0:01:32]}  Re8 {[%clk 0:00:52]} 34. Ne3 {[%clk 0:01:25]}  Kc6 {[%clk 0:00:45]} 35. Kf1 {[%clk 0:01:24]}  Nc1 {[%clk 0:00:42]} 36. Re1 {[%clk 0:01:20]}  Nd3 {[%clk 0:00:42]} 37. Re2 {[%clk 0:01:20]}  Nf4 {[%clk 0:00:42]} 38. Re1 {[%clk 0:01:19]}  Nd3 {[%clk 0:00:41]} 39. Re2 {[%clk 0:01:19]} 1/2-1/2


[Site "https://www.chess.com"]

[Event "Titled Tuesday Blitz November 29 Late 2022"]
[White "Aggelis, Nikolaos"]
[Black "Yoo, Christopher Woojin"]
[WhiteFideId "4213220"]
[BlackFideId "30909694"]
[WhiteElo "2189"]
[BlackElo "2463"]
[Result "0-1"]
[Round "05"]
[TimeControl "180+1"]
[Date "2022.11.30"]
[WhiteClock "0:01:12"]
[BlackClock "0:01:34"]

1. d4 {[%clk 0:03:00]}  Nf6 {[%clk 0:02:56]} 2. Nf3 {[%clk 0:03:00]}  b6 {[%clk 0:02:53]} 3. g3 {[%clk 0:02:54]}  Bb7 {[%clk 0:02:40]} 4. Bg2 {[%clk 0:02:53]}  e6 {[%clk 0:02:40]} 5. O-O {[%clk 0:02:53]}  Be7 {[%clk 0:02:39]} 6. b3 {[%clk 0:02:48]}  O-O {[%clk 0:02:39]} 7. Bb2 {[%clk 0:02:47]}  d5 {[%clk 0:02:39]} 8. Nbd2 {[%clk 0:02:47]}  Nbd7 {[%clk 0:02:39]} 9. Rc1 {[%clk 0:02:44]}  c5 {[%clk 0:02:32]} 10. c4 {[%clk 0:02:43]}  Rc8 {[%clk 0:02:30]} 11. Ne5 {[%clk 0:02:40]}  cxd4 {[%clk 0:02:23]} 12. Bxd4 {[%clk 0:02:39]}  Nxe5 {[%clk 0:02:23]} 13. Bxe5 {[%clk 0:02:38]}  Nd7 {[%clk 0:02:21]} 14. Bb2 {[%clk 0:02:38]}  Nc5 {[%clk 0:02:22]} 15. Re1 {[%clk 0:02:04]}  Bg5 {[%clk 0:02:12]} 16. f4 {[%clk 0:01:54]}  Bf6 {[%clk 0:02:10]} 17. Bxf6 {[%clk 0:01:52]}  Qxf6 {[%clk 0:02:11]} 18. Nf1 {[%clk 0:01:47]}  Rfd8 {[%clk 0:02:02]} 19. Qc2 {[%clk 0:01:45]}  dxc4 {[%clk 0:01:55]} 20. Qxc4 {[%clk 0:01:31]}  Nd3 {[%clk 0:01:42]} 21. Qxc8 {[%clk 0:01:22]}  Rxc8 {[%clk 0:01:37]} 22. exd3 {[%clk 0:01:13]}  Rxc1 {[%clk 0:01:34]} 23. Rxc1 {[%clk 0:01:13]}  Qd4+ {[%clk 0:01:34]} 24. Kh1 {[%clk 0:01:11]}  Bxg2+ {[%clk 0:01:34]} 25. Kxg2 {[%clk 0:01:12]}  Qb2+ {[%clk 0:01:34]} 0-1


[Site "https://www.chess.com"]

[Event "Titled Tuesday Blitz November 29 Late 2022"]
[White "Aguilar, Juan"]
[Black "Gatterer, Florian"]
[WhiteFideId "3800091"]
[BlackFideId "811688"]
[WhiteElo "2526"]
[BlackElo "2218"]
[Result "1/2-1/2"]
[Round "05"]
[TimeControl "180+1"]
[Date "2022.11.30"]
[WhiteClock "0:00:26"]
[BlackClock "0:00:15"]

1. d4 {[%clk 0:03:00]}  c6 {[%clk 0:02:59]} 2. c4 {[%clk 0:03:00]}  d5 {[%clk 0:02:59]} 3. Nf3 {[%clk 0:03:00]}  Nf6 {[%clk 0:02:58]} 4. Qc2 {[%clk 0:03:00]}  g6 {[%clk 0:02:57]} 5. Bf4 {[%clk 0:03:00]}  Bg7 {[%clk 0:02:57]} 6. e3 {[%clk 0:02:53]}  O-O {[%clk 0:02:54]} 7. Nc3 {[%clk 0:02:52]}  Bf5 {[%clk 0:02:54]} 8. Bd3 {[%clk 0:02:51]}  Bxd3 {[%clk 0:02:54]} 9. Qxd3 {[%clk 0:02:51]}  dxc4 {[%clk 0:02:48]} 10. Qxc4 {[%clk 0:02:51]}  Nbd7 {[%clk 0:02:49]} 11. Rd1 {[%clk 0:02:48]}  Nb6 {[%clk 0:02:49]} 12. Qe2 {[%clk 0:02:42]}  Nfd5 {[%clk 0:02:48]} 13. Be5 {[%clk 0:02:40]}  Bxe5 {[%clk 0:02:46]} 14. Nxe5 {[%clk 0:02:33]}  Nd7 {[%clk 0:02:41]} 15. O-O {[%clk 0:02:29]}  Nxc3 {[%clk 0:02:38]} 16. bxc3 {[%clk 0:02:27]}  Nxe5 {[%clk 0:02:38]} 17. dxe5 {[%clk 0:02:27]}  Qa5 {[%clk 0:02:38]} 18. e6 {[%clk 0:02:20]}  Qxc3 {[%clk 0:02:35]} 19. exf7+ {[%clk 0:02:20]}  Rxf7 {[%clk 0:02:35]} 20. Rd7 {[%clk 0:02:16]}  Qb4 {[%clk 0:02:23]} 21. Rfd1 {[%clk 0:02:14]}  Raf8 {[%clk 0:02:22]} 22. f3 {[%clk 0:02:10]}  a5 {[%clk 0:02:14]} 23. Qd3 {[%clk 0:02:08]}  e5 {[%clk 0:02:00]} 24. Rxf7 {[%clk 0:02:01]}  Rxf7 {[%clk 0:01:58]} 25. Rb1 {[%clk 0:01:41]}  Qc5 {[%clk 0:01:57]} 26. Kh1 {[%clk 0:01:38]}  Kg7 {[%clk 0:01:56]} 27. h4 {[%clk 0:01:32]}  Qd5 {[%clk 0:01:32]} 28. Qc3 {[%clk 0:01:23]}  Kg8 {[%clk 0:01:24]} 29. h5 {[%clk 0:01:11]}  Rd7 {[%clk 0:01:20]} 30. Rf1 {[%clk 0:01:00]}  Qd3 {[%clk 0:01:09]} 31. Qc1 {[%clk 0:00:59]}  gxh5 {[%clk 0:01:02]} 32. f4 {[%clk 0:00:58]}  exf4 {[%clk 0:00:51]} 33. exf4 {[%clk 0:00:57]}  Qd2 {[%clk 0:00:52]} 34. Qc4+ {[%clk 0:00:56]}  Qd5 {[%clk 0:00:51]} 35. Qc3 {[%clk 0:00:45]}  Rg7 {[%clk 0:00:44]} 36. Rf2 {[%clk 0:00:35]}  Rg4 {[%clk 0:00:35]} 37. Rd2 {[%clk 0:00:27]}  Qb5 {[%clk 0:00:16]} 38. Rd8+ {[%clk 0:00:26]}  Kf7 {[%clk 0:00:15]} 1/2-1/2


[Site "https://www.chess.com"]

[Event "Titled Tuesday Blitz November 29 Late 2022"]
[White "Al-Tarboush, Ward"]
[Black "Dylag, Emilia"]
[WhiteFideId "7601450"]
[BlackFideId "21805172"]
[WhiteElo "2273"]
[BlackElo "1878"]
[Result "1-0"]
[Round "05"]
[TimeControl "180+1"]
[Date "2022.11.30"]
[WhiteClock "0:00:12"]
[BlackClock "0:00:01"]

1. e4 {[%clk 0:02:55]}  e5 {[%clk 0:02:59]} 2. Nf3 {[%clk 0:02:56]}  Nc6 {[%clk 0:02:59]} 3. Bb5 {[%clk 0:02:57]}  a6 {[%clk 0:02:59]} 4. Ba4 {[%clk 0:02:57]}  d6 {[%clk 0:02:59]} 5. O-O {[%clk 0:02:57]}  Bd7 {[%clk 0:03:00]} 6. c3 {[%clk 0:02:57]}  g6 {[%clk 0:02:58]} 7. d4 {[%clk 0:02:57]}  Bg7 {[%clk 0:02:58]} 8. Be3 {[%clk 0:02:53]}  Nf6 {[%clk 0:02:57]} 9. Nbd2 {[%clk 0:02:53]}  O-O {[%clk 0:02:54]} 10. Re1 {[%clk 0:02:51]}  b5 {[%clk 0:02:39]} 11. Bc2 {[%clk 0:02:50]}  exd4 {[%clk 0:02:39]} 12. cxd4 {[%clk 0:02:48]}  Nb4 {[%clk 0:02:39]} 13. e5 {[%clk 0:02:47]}  dxe5 {[%clk 0:02:34]} 14. dxe5 {[%clk 0:02:46]}  Ng4 {[%clk 0:02:32]} 15. Be4 {[%clk 0:02:43]}  Nxe3 {[%clk 0:02:26]} 16. Rxe3 {[%clk 0:02:42]}  Bc6 {[%clk 0:02:26]} 17. a3 {[%clk 0:02:30]}  Bxe4 {[%clk 0:02:20]} 18. Nxe4 {[%clk 0:02:31]}  Nc6 {[%clk 0:02:09]} 19. Nc5 {[%clk 0:02:11]}  Qe7 {[%clk 0:01:29]} 20. Qc2 {[%clk 0:02:10]}  Rfd8 {[%clk 0:01:02]} 21. Rae1 {[%clk 0:02:04]}  Rd5 {[%clk 0:00:53]} 22. Nd3 {[%clk 0:02:01]}  Na5 {[%clk 0:00:39]} 23. e6 {[%clk 0:01:56]}  Nc4 {[%clk 0:00:36]} 24. exf7+ {[%clk 0:01:54]}  Qxf7 {[%clk 0:00:36]} 25. Re7 {[%clk 0:01:53]}  Qf6 {[%clk 0:00:31]} 26. Qe2 {[%clk 0:01:23]}  Rf8 {[%clk 0:00:19]} 27. Rxc7 {[%clk 0:01:21]}  Rf5 {[%clk 0:00:06]} 28. b3 {[%clk 0:01:00]}  Nd6 {[%clk 0:00:03]} 29. Nc5 {[%clk 0:00:36]}  Rd5 {[%clk 0:00:03]} 30. Nd7 {[%clk 0:00:26]}  Qf7 {[%clk 0:00:02]} 31. Nxf8 {[%clk 0:00:14]}  Qxc7 {[%clk 0:00:03]} 32. Ne6 {[%clk 0:00:14]}  Qe7 {[%clk 0:00:01]} 33. h4 {[%clk 0:00:12]} 1-0


[Site "https://www.chess.com"]

[Event "Titled Tuesday Blitz November 29 Late 2022"]
[White "Ankerst, Mihael"]
[Black "Banzea, Alexandru-Bogdan"]
[WhiteFideId "14602369"]
[BlackFideId "1232622"]
[WhiteElo "2328"]
[BlackElo "2294"]
[Result "0-1"]
[Round "05"]
[TimeControl "180+1"]
[Date "2022.11.30"]
[WhiteClock "0:00:23"]
[BlackClock "0:00:08"]

1. e4 {[%clk 0:02:56]}  c6 {[%clk 0:02:59]} 2. d4 {[%clk 0:02:56]}  d5 {[%clk 0:02:59]} 3. e5 {[%clk 0:02:56]}  Bf5 {[%clk 0:02:53]} 4. Nf3 {[%clk 0:02:55]}  e6 {[%clk 0:02:51]} 5. Be2 {[%clk 0:02:56]}  c5 {[%clk 0:02:48]} 6. c4 {[%clk 0:02:55]}  dxc4 {[%clk 0:02:38]} 7. Nc3 {[%clk 0:02:51]}  Ne7 {[%clk 0:02:31]} 8. Bxc4 {[%clk 0:02:47]}  cxd4 {[%clk 0:02:12]} 9. Nxd4 {[%clk 0:02:46]}  Nbc6 {[%clk 0:02:12]} 10. Nxf5 {[%clk 0:02:43]}  Qxd1+ {[%clk 0:02:11]} 11. Nxd1 {[%clk 0:02:35]}  Nxf5 {[%clk 0:02:12]} 12. f4 {[%clk 0:02:31]}  Bb4+ {[%clk 0:02:04]} 13. Nc3 {[%clk 0:02:11]}  O-O {[%clk 0:02:02]} 14. Bd3 {[%clk 0:01:48]}  Rfd8 {[%clk 0:01:56]} 15. Bxf5 {[%clk 0:01:47]}  exf5 {[%clk 0:01:57]} 16. Be3 {[%clk 0:01:46]}  Bxc3+ {[%clk 0:01:45]} 17. bxc3 {[%clk 0:01:47]}  Rd3 {[%clk 0:01:45]} 18. Ke2 {[%clk 0:01:13]}  Rxc3 {[%clk 0:01:45]} 19. Rab1 {[%clk 0:01:10]}  Nd8 {[%clk 0:01:20]} 20. Rb2 {[%clk 0:01:03]}  b6 {[%clk 0:01:14]} 21. Rd1 {[%clk 0:01:03]}  Ne6 {[%clk 0:01:11]} 22. Rd7 {[%clk 0:01:02]}  h6 {[%clk 0:01:03]} 23. Rbd2 {[%clk 0:00:59]}  g5 {[%clk 0:01:02]} 24. g3 {[%clk 0:00:56]}  Ra3 {[%clk 0:00:55]} 25. Rb7 {[%clk 0:00:53]}  Rc8 {[%clk 0:00:49]} 26. Kf2 {[%clk 0:00:14]}  Rcc3 {[%clk 0:00:45]} 27. Re2 {[%clk 0:00:13]}  Rd3 {[%clk 0:00:33]} 28. Re7 {[%clk 0:00:11]}  Kf8 {[%clk 0:00:29]} 29. Rb7 {[%clk 0:00:12]}  Kg7 {[%clk 0:00:28]} 30. Re7 {[%clk 0:00:09]}  Kg6 {[%clk 0:00:27]} 31. Rb7 {[%clk 0:00:10]}  Ra4 {[%clk 0:00:13]} 32. Kf3 {[%clk 0:00:06]}  Nd4+ {[%clk 0:00:11]} 33. Kf2 {[%clk 0:00:05]}  Nxe2 {[%clk 0:00:11]} 34. Kxe2 {[%clk 0:00:06]}  Rc3 {[%clk 0:00:07]} 35. Bd2 {[%clk 0:00:04]}  Rxa2 {[%clk 0:00:07]} 36. Ke1 {[%clk 0:00:04]}  Rb3 {[%clk 0:00:07]} 37. Bc1 {[%clk 0:00:03]}  Rb1 {[%clk 0:00:07]} 38. Kd1 {[%clk 0:00:04]}  Rxh2 {[%clk 0:00:06]} 39. Rxa7 {[%clk 0:00:03]}  Rh1+ {[%clk 0:00:06]} 40. Kc2 {[%clk 0:00:03]}  Rhxc1+ {[%clk 0:00:07]} 41. Kd3 {[%clk 0:00:03]}  Rb3+ {[%clk 0:00:06]} 42. Kd2 {[%clk 0:00:03]}  Rf1 {[%clk 0:00:06]} 43. Ra6 {[%clk 0:00:02]}  Rxg3 {[%clk 0:00:06]} 44. Rxb6+ {[%clk 0:00:01]}  Kh5 {[%clk 0:00:07]} 45. Ke2 {[%clk 0:00:02]}  Rxf4 {[%clk 0:00:06]} 46. e6 {[%clk 0:00:01]}  Re4+ {[%clk 0:00:07]} 47. Kf2 {[%clk 0:00:02]}  Rxe6 {[%clk 0:00:04]} 48. Kxg3 {[%clk 0:00:02]}  Rxb6 {[%clk 0:00:04]} 49. Kf2 {[%clk 0:00:01]}  Rb3 {[%clk 0:00:05]} 50. Kf1 {[%clk 0:00:02]}  Kg4 {[%clk 0:00:05]} 51. Ke2 {[%clk 0:00:03]}  h5 {[%clk 0:00:06]} 52. Kd2 {[%clk 0:00:04]}  h4 {[%clk 0:00:06]} 53. Kc2 {[%clk 0:00:05]}  Rf3 {[%clk 0:00:06]} 54. Kd2 {[%clk 0:00:05]}  h3 {[%clk 0:00:07]} 55. Ke2 {[%clk 0:00:06]}  h2 {[%clk 0:00:08]} 56. Kd2 {[%clk 0:00:07]}  h1=Q {[%clk 0:00:08]} 57. Kc2 {[%clk 0:00:08]}  Kf4 {[%clk 0:00:07]} 58. Kb2 {[%clk 0:00:09]}  g4 {[%clk 0:00:08]} 59. Ka2 {[%clk 0:00:09]}  g3 {[%clk 0:00:08]} 60. Kb2 {[%clk 0:00:10]}  g2 {[%clk 0:00:09]} 61. Kc2 {[%clk 0:00:11]}  g1=Q {[%clk 0:00:10]} 62. Kd2 {[%clk 0:00:12]}  Re3 {[%clk 0:00:09]} 63. Kc2 {[%clk 0:00:13]}  Ke4 {[%clk 0:00:09]} 64. Kb2 {[%clk 0:00:14]}  f4 {[%clk 0:00:10]} 65. Ka2 {[%clk 0:00:14]}  f3 {[%clk 0:00:11]} 66. Kb2 {[%clk 0:00:15]}  f2 {[%clk 0:00:12]} 67. Ka2 {[%clk 0:00:16]}  f1=Q {[%clk 0:00:13]} 68. Kb2 {[%clk 0:00:17]}  f5 {[%clk 0:00:13]} 69. Kc2 {[%clk 0:00:18]}  f4 {[%clk 0:00:14]} 70. Kb2 {[%clk 0:00:18]}  f3 {[%clk 0:00:15]} 71. Kc2 {[%clk 0:00:19]}  f2 {[%clk 0:00:14]} 72. Kd2 {[%clk 0:00:19]}  Rd3+ {[%clk 0:00:13]} 73. Kc2 {[%clk 0:00:20]}  Qe1 {[%clk 0:00:13]} 74. Kb2 {[%clk 0:00:20]}  f1=Q {[%clk 0:00:13]} 75. Kc2 {[%clk 0:00:21]}  Rd8 {[%clk 0:00:11]} 76. Kb2 {[%clk 0:00:22]}  Qd1 {[%clk 0:00:09]} 77. Kc3 {[%clk 0:00:22]}  Qfe1+ {[%clk 0:00:09]} 78. Kc4 {[%clk 0:00:22]}  Qgf1+ {[%clk 0:00:09]} 79. Kc5 {[%clk 0:00:23]}  Qhg1+ {[%clk 0:00:09]} 80. Kc6 {[%clk 0:00:23]}  Qc2+ {[%clk 0:00:08]} 81. Kb7 {[%clk 0:00:23]}  Qeb1# {[%clk 0:00:08]} 0-1


[Site "https://www.chess.com"]

[Event "Titled Tuesday Blitz November 29 Late 2022"]
[White "Araujo Sanchez, Josue"]
[Black "Radovanovic, Dusan"]
[WhiteFideId "6416896"]
[BlackFideId "926868"]
[WhiteElo "2370"]
[BlackElo "2341"]
[Result "1/2-1/2"]
[Round "05"]
[TimeControl "180+1"]
[Date "2022.11.30"]
[WhiteClock "0:00:14"]
[BlackClock "0:00:10"]

1. d4 {[%clk 0:02:47]}  Nf6 {[%clk 0:02:59]} 2. c4 {[%clk 0:02:27]}  g6 {[%clk 0:02:57]} 3. Nc3 {[%clk 0:02:25]}  Bg7 {[%clk 0:02:57]} 4. e4 {[%clk 0:01:48]}  d6 {[%clk 0:02:57]} 5. Be2 {[%clk 0:01:48]}  O-O {[%clk 0:02:56]} 6. Be3 {[%clk 0:01:47]}  e5 {[%clk 0:02:53]} 7. d5 {[%clk 0:01:47]}  c6 {[%clk 0:02:54]} 8. g4 {[%clk 0:01:46]}  a5 {[%clk 0:02:49]} 9. h4 {[%clk 0:01:42]}  cxd5 {[%clk 0:02:43]} 10. cxd5 {[%clk 0:01:40]}  Na6 {[%clk 0:02:33]} 11. g5 {[%clk 0:01:39]}  Nd7 {[%clk 0:02:31]} 12. h5 {[%clk 0:01:39]}  Ndc5 {[%clk 0:02:29]} 13. Nh3 {[%clk 0:01:11]}  a4 {[%clk 0:02:28]} 14. f3 {[%clk 0:01:03]}  Qa5 {[%clk 0:02:24]} 15. Rc1 {[%clk 0:00:58]}  Bd7 {[%clk 0:02:21]} 16. Kf2 {[%clk 0:00:55]}  b5 {[%clk 0:02:21]} 17. Kg2 {[%clk 0:00:54]}  b4 {[%clk 0:02:20]} 18. Nb1 {[%clk 0:00:54]}  Rfc8 {[%clk 0:02:20]} 19. Nd2 {[%clk 0:00:54]}  Bb5 {[%clk 0:02:20]} 20. Nc4 {[%clk 0:00:53]}  Bxc4 {[%clk 0:02:08]} 21. Bxc4 {[%clk 0:00:54]}  Qd8 {[%clk 0:01:57]} 22. Nf2 {[%clk 0:00:51]}  Rab8 {[%clk 0:01:47]} 23. Ng4 {[%clk 0:00:50]}  b3 {[%clk 0:01:39]} 24. a3 {[%clk 0:00:46]}  Nc7 {[%clk 0:01:36]} 25. Qd2 {[%clk 0:00:45]}  Nb5 {[%clk 0:01:34]} 26. Bxb5 {[%clk 0:00:41]}  Rxb5 {[%clk 0:01:33]} 27. Nf6+ {[%clk 0:00:38]}  Bxf6 {[%clk 0:01:27]} 28. gxf6 {[%clk 0:00:39]}  Qxf6 {[%clk 0:01:22]} 29. Bg5 {[%clk 0:00:36]}  Qg7 {[%clk 0:01:21]} 30. Bh6 {[%clk 0:00:35]}  Qf6 {[%clk 0:01:20]} 31. Bg5 {[%clk 0:00:34]}  Qg7 {[%clk 0:01:06]} 32. Be7 {[%clk 0:00:35]}  Rb6 {[%clk 0:00:52]} 33. h6 {[%clk 0:00:34]}  Qh8 {[%clk 0:00:51]} 34. Qg5 {[%clk 0:00:34]}  Rbb8 {[%clk 0:00:31]} 35. Bf6 {[%clk 0:00:30]}  Nd3 {[%clk 0:00:32]} 36. Bxh8 {[%clk 0:00:30]}  Nf4+ {[%clk 0:00:23]} 37. Kf2 {[%clk 0:00:26]}  Rxc1 {[%clk 0:00:21]} 38. Qf6 {[%clk 0:00:21]}  Rc2+ {[%clk 0:00:16]} 39. Ke1 {[%clk 0:00:16]}  Ng2+ {[%clk 0:00:08]} 40. Kd1 {[%clk 0:00:14]}  Ne3+ {[%clk 0:00:09]} 41. Ke1 {[%clk 0:00:15]}  Ng2+ {[%clk 0:00:09]} 42. Kd1 {[%clk 0:00:15]}  Ne3+ {[%clk 0:00:09]} 43. Ke1 {[%clk 0:00:14]}  Ng2+ {[%clk 0:00:10]} 1/2-1/2


[Site "https://www.chess.com"]

[Event "Titled Tuesday Blitz November 29 Late 2022"]
[White "Bilan, Danila"]
[Black "Preotu, Razvan"]
[WhiteFideId "24161918"]
[BlackFideId "2613280"]
[WhiteElo "2173"]
[BlackElo "2407"]
[Result "1/2-1/2"]
[Round "05"]
[TimeControl "180+1"]
[Date "2022.11.30"]
[WhiteClock "0:00:05"]
[BlackClock "0:00:09"]

1. d4 {[%clk 0:02:49]}  Nf6 {[%clk 0:02:59]} 2. Nf3 {[%clk 0:02:47]}  g6 {[%clk 0:03:00]} 3. Bg5 {[%clk 0:02:47]}  Bg7 {[%clk 0:03:00]} 4. c3 {[%clk 0:02:47]}  O-O {[%clk 0:03:00]} 5. Nbd2 {[%clk 0:02:47]}  d6 {[%clk 0:02:59]} 6. e4 {[%clk 0:02:47]}  c5 {[%clk 0:03:00]} 7. dxc5 {[%clk 0:02:44]}  dxc5 {[%clk 0:03:01]} 8. Qc2 {[%clk 0:02:44]}  Nc6 {[%clk 0:03:01]} 9. Be2 {[%clk 0:02:43]}  h6 {[%clk 0:02:58]} 10. Bh4 {[%clk 0:02:41]}  Nh5 {[%clk 0:02:58]} 11. O-O {[%clk 0:02:37]}  Nf4 {[%clk 0:02:52]} 12. Bc4 {[%clk 0:02:36]}  Na5 {[%clk 0:02:50]} 13. Bg3 {[%clk 0:02:24]}  Nxc4 {[%clk 0:02:43]} 14. Nxc4 {[%clk 0:02:25]}  Qd3 {[%clk 0:02:12]} 15. Qxd3 {[%clk 0:02:11]}  Nxd3 {[%clk 0:02:13]} 16. Rfd1 {[%clk 0:02:00]}  b5 {[%clk 0:02:06]} 17. Rxd3 {[%clk 0:01:44]}  bxc4 {[%clk 0:02:05]} 18. Rd5 {[%clk 0:01:42]}  Bb7 {[%clk 0:01:56]} 19. Rxc5 {[%clk 0:01:38]}  Rfc8 {[%clk 0:01:57]} 20. Rxc8+ {[%clk 0:01:29]}  Rxc8 {[%clk 0:01:58]} 21. Rd1 {[%clk 0:01:20]}  Bxe4 {[%clk 0:01:55]} 22. Rd7 {[%clk 0:01:20]}  Bf6 {[%clk 0:01:14]} 23. Rxa7 {[%clk 0:01:08]}  Rd8 {[%clk 0:01:13]} 24. h3 {[%clk 0:01:08]}  Rd1+ {[%clk 0:01:04]} 25. Kh2 {[%clk 0:01:08]}  Rb1 {[%clk 0:00:50]} 26. Nd2 {[%clk 0:01:03]}  Re1 {[%clk 0:00:50]} 27. Nxe4 {[%clk 0:01:00]}  Rxe4 {[%clk 0:00:51]} 28. Rb7 {[%clk 0:00:47]}  g5 {[%clk 0:00:49]} 29. a4 {[%clk 0:00:46]}  h5 {[%clk 0:00:49]} 30. Bc7 {[%clk 0:00:36]}  Re1 {[%clk 0:00:45]} 31. a5 {[%clk 0:00:34]}  Ra1 {[%clk 0:00:46]} 32. g4 {[%clk 0:00:27]}  h4 {[%clk 0:00:44]} 33. Rb4 {[%clk 0:00:21]}  Ra2 {[%clk 0:00:41]} 34. Kg2 {[%clk 0:00:20]}  Kf8 {[%clk 0:00:38]} 35. Rxc4 {[%clk 0:00:21]}  Rxb2 {[%clk 0:00:24]} 36. Ra4 {[%clk 0:00:20]}  Rb7 {[%clk 0:00:25]} 37. Bb6 {[%clk 0:00:18]}  Bxc3 {[%clk 0:00:19]} 38. a6 {[%clk 0:00:18]}  Rb8 {[%clk 0:00:19]} 39. a7 {[%clk 0:00:19]}  Ra8 {[%clk 0:00:20]} 40. Be3 {[%clk 0:00:17]}  f6 {[%clk 0:00:14]} 41. Ra3 {[%clk 0:00:15]}  Be5 {[%clk 0:00:15]} 42. Rb3 {[%clk 0:00:15]}  Kf7 {[%clk 0:00:15]} 43. Kf3 {[%clk 0:00:14]}  Ke6 {[%clk 0:00:16]} 44. Ke4 {[%clk 0:00:15]}  Kd7 {[%clk 0:00:16]} 45. Rb7+ {[%clk 0:00:14]}  Ke6 {[%clk 0:00:16]} 46. f4 {[%clk 0:00:13]}  gxf4 {[%clk 0:00:15]} 47. Bxf4 {[%clk 0:00:13]}  Bxf4 {[%clk 0:00:16]} 48. Kxf4 {[%clk 0:00:14]}  Kd6 {[%clk 0:00:16]} 49. Kf5 {[%clk 0:00:14]}  e5 {[%clk 0:00:10]} 50. Kxf6 {[%clk 0:00:14]}  e4 {[%clk 0:00:11]} 51. Re7 {[%clk 0:00:12]}  Rf8+ {[%clk 0:00:09]} 52. Rf7 {[%clk 0:00:13]}  Ra8 {[%clk 0:00:09]} 53. Re7 {[%clk 0:00:09]}  Rf8+ {[%clk 0:00:08]} 54. Rf7 {[%clk 0:00:09]}  Ra8 {[%clk 0:00:09]} 55. Re7 {[%clk 0:00:05]} 1/2-1/2


[Site "https://www.chess.com"]

[Event "Titled Tuesday Blitz November 29 Late 2022"]
[White "Bjelobrk, Igor"]
[Black "Khandelwal, Ankush"]
[WhiteFideId "4300726"]
[BlackFideId "413470"]
[WhiteElo "2335"]
[BlackElo "2271"]
[Result "1-0"]
[Round "05"]
[TimeControl "180+1"]
[Date "2022.11.30"]
[WhiteClock "0:01:17"]
[BlackClock "0:00:18"]

1. Nf3 {[%clk 0:02:54]}  Nf6 {[%clk 0:01:12]} 2. c4 {[%clk 0:02:50]}  g6 {[%clk 0:01:12]} 3. Nc3 {[%clk 0:02:49]}  Bg7 {[%clk 0:01:12]} 4. e4 {[%clk 0:02:49]}  d6 {[%clk 0:01:12]} 5. d4 {[%clk 0:02:49]}  O-O {[%clk 0:01:12]} 6. h3 {[%clk 0:02:49]}  Na6 {[%clk 0:01:11]} 7. Be3 {[%clk 0:02:47]}  e5 {[%clk 0:01:11]} 8. d5 {[%clk 0:02:47]}  Nc5 {[%clk 0:01:09]} 9. Nd2 {[%clk 0:02:47]}  a5 {[%clk 0:01:09]} 10. g4 {[%clk 0:02:46]}  c6 {[%clk 0:01:08]} 11. Be2 {[%clk 0:02:41]}  cxd5 {[%clk 0:01:08]} 12. cxd5 {[%clk 0:02:40]}  b6 {[%clk 0:01:03]} 13. h4 {[%clk 0:02:37]}  Ba6 {[%clk 0:01:03]} 14. Bxa6 {[%clk 0:02:21]}  Rxa6 {[%clk 0:01:04]} 15. Qe2 {[%clk 0:02:21]}  Ra8 {[%clk 0:01:02]} 16. h5 {[%clk 0:02:18]}  Rc8 {[%clk 0:01:00]} 17. hxg6 {[%clk 0:02:04]}  fxg6 {[%clk 0:01:01]} 18. f3 {[%clk 0:02:04]}  Qd7 {[%clk 0:00:57]} 19. a4 {[%clk 0:02:01]}  Qb7 {[%clk 0:00:42]} 20. O-O {[%clk 0:01:58]}  Na6 {[%clk 0:00:41]} 21. Nc4 {[%clk 0:01:51]}  Ne8 {[%clk 0:00:41]} 22. Nxb6 {[%clk 0:01:49]}  Rb8 {[%clk 0:00:38]} 23. Nc4 {[%clk 0:01:37]}  h5 {[%clk 0:00:35]} 24. g5 {[%clk 0:01:35]}  Rf7 {[%clk 0:00:29]} 25. Rf2 {[%clk 0:01:33]}  Bf8 {[%clk 0:00:29]} 26. Nxa5 {[%clk 0:01:32]}  Qc8 {[%clk 0:00:26]} 27. Nc6 {[%clk 0:01:32]}  Rbb7 {[%clk 0:00:24]} 28. Nb5 {[%clk 0:01:29]}  Nc5 {[%clk 0:00:18]} 29. b4 {[%clk 0:01:27]}  Nb3 {[%clk 0:00:17]} 30. Rd1 {[%clk 0:01:25]}  Nc7 {[%clk 0:00:16]} 31. Nxc7 {[%clk 0:01:22]}  Rfxc7 {[%clk 0:00:16]} 32. b5 {[%clk 0:01:22]}  Qa8 {[%clk 0:00:16]} 33. Qc4 {[%clk 0:01:20]}  Nc5 {[%clk 0:00:16]} 34. Bxc5 {[%clk 0:01:19]}  dxc5 {[%clk 0:00:17]} 35. d6+ {[%clk 0:01:20]}  Rf7 {[%clk 0:00:18]} 36. d7 {[%clk 0:01:17]} 1-0


[Site "https://www.chess.com"]